bitfinex-derivatives/quotes_SOLF0:USTF0_20250421
["timestamp","ask_amount","ask_price","bid_price","bid_amount"]
[1745242417893,25.43438023,138.6,138.52,24.63961033]
[1745242418097,25.43438023,138.6,138.52,27.44071033]
[1745242418396,25.43438023,138.6,138.52,0.04943935]
[1745242418596,26.31458023,138.6,138.52,0.04943935]
[1745242418794,7.2176,138.55,138.52,0.04943935]
[1745242418988,28.08,138.57,138.52,0.04943935]
[1745242419389,7.2182,138.54,138.52,0.04943935]
[1745242419594,28.08,138.57,138.52,0.04943935]
[1745242420300,24.59017098,138.56,138.43,24.59017098]
[1745242420498,24.59017098,138.56,138.44,28.08]
[1745242420702,24.59017098,138.53,138.44,28.08]
[1745242420893,28.08,138.55,138.46,24.59017098]
[1745242421295,1.44341801,138.56,138.49,24.59017098]
[1745242421496,0.05061949,138.54,138.52,24.59017098]
[1745242421696,1.6215,138.59,138.53,7.2185]
[1745242421895,0.04937017,138.54,138.53,7.2185]
[1745242422197,7.2182,138.54,138.52,0.04851646]
[1745242422389,0.04833621,138.55,138.52,0.04851646]
[1745242423295,0.04833621,138.55,138.47,28.08]
[1745242423600,7.2198,138.51,138.48,7.2207]
[1745242423898,7.2188,138.53,138.5,7.22]
[1745242424198,28.08,138.56,138.47,28.08]
[1745242424499,7.2191,138.52,138.5,0.05348952]
[1745242424698,0.05119473,138.53,138.5,0.05348952]
[1745242425597,7.2195,138.51,138.5,0.05348952]
[1745242425994,0.05119473,138.53,138.5,0.05348952]
[1745242426193,0.05119473,138.53,138.51,7.2195]
[1745242426596,0.05119473,138.53,138.5,0.05348952]
[1745242427198,7.2193,138.52,138.5,0.05348952]
[1745242427498,0.05119473,138.53,138.5,0.05348952]
[1745242427800,7.2195,138.51,138.5,0.05348952]
[1745242428201,28.84,138.52,138.44,28.84]
[1745242428503,7.2199,138.51,138.45,24.59017098]
[1745242428700,28.84,138.55,138.45,24.59017098]
[1745242429000,7.2198,138.51,138.45,24.59017098]
[1745242429398,0.04819692,138.49,138.47,0.04690037]
[1745242429703,7.2203,138.5,138.47,0.04690037]
[1745242429895,0.05421662,138.49,138.47,0.04690037]
[1745242430695,0.05421662,138.49,138.48,7.2211]
[1745242430897,0.05421662,138.49,138.47,0.04690037]
[1745242432200,0.05421662,138.49,138.47,7.26840037]
[1745242432405,0.05421662,138.49,138.47,0.04690037]
[1745242433103,7.27511662,138.49,138.47,0.04690037]
[1745242433800,7.2211,138.48,138.47,0.04690037]
[1745242435201,0.05421662,138.49,138.4,361.0]
[1745242435504,24.59017098,138.5,138.4,361.0]
[1745242435706,24.59017098,138.5,138.42,7.2238]
[1745242436204,7.2228,138.45,138.42,7.2238]
[1745242436702,7.2228,138.45,138.42,7.26980846]
[1745242436903,7.2226,138.46,138.43,7.2237]
[1745242437203,28.90665983,138.47,138.42,0.04600846]
[1745242437600,7.2221,138.46,138.43,7.2234]
[1745242437902,28.90665983,138.47,138.43,7.2234]
[1745242438203,28.90665983,138.47,138.42,0.04600846]
[1745242438700,0.04665983,138.47,138.42,0.04600846]
[1745242438900,0.04665983,138.47,138.43,24.59017098]
[1745242439096,0.04665983,138.47,138.44,2.888]
[1745242439301,0.04665983,138.47,138.42,0.04600846]
[1745242439597,0.04665983,138.47,138.42,5.92800846]
[1745242439794,0.04665983,138.47,138.46,7.2221]
[1745242439999,54.21470317,138.53,138.43,24.59017098]
[1745242440305,54.21470317,138.53,138.46,7.2217]
[1745242440697,54.21470317,138.53,138.43,24.59017098]
[1745242440897,25.35470317,138.53,138.43,24.59017098]
[1745242441201,0.05199221,138.49,138.47,0.04710152]
[1745242441403,0.05199221,138.49,138.48,7.2208]
[1745242441798,0.05199221,138.49,138.47,0.04710152]
[1745242442508,0.05199221,138.49,138.47,7.26840152]
[1745242443111,0.05199221,138.49,138.48,7.2211]
[1745242443505,0.05199221,138.49,138.47,0.04710152]
[1745242443700,7.27259221,138.49,138.47,0.04710152]
[1745242443906,0.05199221,138.49,138.47,0.04710152]
[1745242444213,0.05199221,138.49,138.47,7.26840152]
[1745242444608,0.05199221,138.49,138.47,0.04710152]
[1745242445909,7.2211,138.48,138.47,0.04710152]
[1745242446210,44.14647504,138.48,138.42,5.882]
[1745242446412,7.2224,138.46,138.43,7.2233]
[1745242446606,44.14647504,138.48,138.42,5.882]
[1745242446911,7.2226,138.46,138.42,13.1057]
[1745242447212,7.2226,138.46,138.42,5.882]
[1745242447410,0.04671006,138.45,138.43,7.27575612]
[1745242448911,7.26941006,138.45,138.43,7.27575612]
[1745242449109,0.04671006,138.45,138.43,0.05215612]
[1745242449614,7.2232,138.44,138.43,0.05215612]
[1745242449912,44.14647504,138.44,138.38,5.6237]
[1745242450110,7.2252,138.4,138.38,5.6237]
[1745242450303,7.2252,138.4,138.37,7.2265]
[1745242450504,44.14647504,138.44,138.35,600.7]
[1745242450704,7.2251,138.41,138.35,600.7]
[1745242451107,0.04794819,138.41,138.38,0.05265614]
[1745242451312,7.2253,138.4,138.38,0.05265614]
[1745242451510,0.04794819,138.41,138.38,0.05265614]
[1745242451710,7.2258,138.39,138.38,0.05265614]
[1745242453013,0.04794819,138.41,138.38,0.05265614]
[1745242453308,7.2258,138.39,138.38,0.05265614]
[1745242453612,24.48630955,138.4,138.33,8.5407]
[1745242453819,7.2274,138.36,138.33,12.8524]
[1745242454014,24.48630955,138.4,138.33,5.6237]
[1745242454620,7.2276,138.36,138.35,0.04804614]
[1745242455513,24.48630955,138.37,138.29,2.7664]
[1745242455817,7.2299,138.32,138.26,28.86]
[1745242456009,28.86,138.33,138.29,7.2306]
[1745242456215,28.86,138.33,138.26,28.86]
[1745242456412,7.2296,138.32,138.26,28.86]
[1745242456614,0.0507368,138.31,138.28,0.05293876]
[1745242456817,0.0507368,138.31,138.28,7.28423876]
[1745242457215,7.2807368,138.31,138.28,0.05293876]
[1745242457411,0.0507368,138.31,138.28,0.05293876]
[1745242458414,7.231,138.29,138.28,0.05293876]
[1745242458819,7.2324,138.27,138.23,2.7804]
[1745242459715,7.2317,138.28,138.24,7.2333]
[1745242459909,28.8,138.32,138.23,2.7804]
[1745242460114,0.05291572,138.27,138.25,0.04826434]
[1745242460318,28.8,138.32,138.25,0.04826434]
[1745242460518,0.04760459,138.27,138.25,0.04826434]
[1745242460718,28.8,138.32,138.25,0.04826434]
[1745242461020,0.04987951,138.27,138.25,0.04826434]
[1745242461222,0.05039394,138.27,138.25,7.28106434]
[1745242461719,0.05039394,138.27,138.25,0.04826434]
[1745242463818,7.2326,138.26,138.25,0.04826434]
[1745242464023,0.05039394,138.27,138.21,5.7319]
[1745242464619,7.2335,138.25,138.21,12.9671]
[1745242464825,0.05039394,138.27,138.21,12.9671]
[1745242465220,7.2335,138.25,138.23,0.04750992]
[1745242465624,0.05039394,138.27,138.23,0.04750992]
[1745242466323,7.2334,138.25,138.23,0.04750992]
[1745242466524,0.05039394,138.27,138.23,0.04750992]
[1745242468226,7.2334,138.25,138.23,0.04750992]
[1745242468422,0.05039394,138.27,138.23,0.04750992]
[1745242468820,7.2336,138.24,138.23,0.04750992]
[1745242469022,36.0336,138.24,138.23,0.04750992]
[1745242469326,7.235,138.22,138.18,13.1111]
[1745242469724,7.235,138.22,138.18,5.8746]
[1745242470227,7.2343,138.23,138.18,5.8746]
[1745242470529,0.04746764,138.22,138.2,7.2356]
[1745242470730,0.04746764,138.22,138.19,0.04653496]
[1745242470926,0.04746764,138.22,138.2,7.2352]
[1745242471530,0.04746764,138.22,138.19,7.28253496]
[1745242472031,7.28246764,138.22,138.19,7.28253496]
[1745242472234,572.7,138.29,138.19,7.28253496]
[1745242472235,28.82,138.33,138.25,7.2331]
[1745242472530,55.72930955,138.33,138.21,28.82]
[1745242472731,55.72930955,138.33,138.22,2.8538]
[1745242472732,7.2317,138.28,138.22,2.8538]
[1745242472926,55.72930955,138.33,138.22,2.8538]
[1745242473131,28.82,138.32,138.22,2.8538]
[1745242473329,0.05374855,138.29,138.26,7.28407203]
[1745242473528,0.05374855,138.29,138.26,0.05177203]
[1745242473830,0.05374855,138.29,138.28,7.2315]
[1745242475429,0.05374855,138.29,138.27,7.2316]
[1745242475631,0.05374855,138.29,138.26,0.05177203]
[1745242476037,0.05374855,138.29,138.27,7.2315]
[1745242476734,0.05374855,138.29,138.26,7.28407203]
[1745242476933,0.05374855,138.29,138.26,0.05177203]
[1745242477633,0.05374855,138.29,138.28,7.2315]
[1745242477834,0.05374855,138.29,138.26,0.05177203]
[1745242478131,0.05374855,138.29,138.27,7.2319]
[1745242478639,7.28474855,138.29,138.26,7.28417203]
[1745242479034,7.28474855,138.29,138.26,0.05177203]
[1745242479235,0.05374855,138.29,138.26,0.05177203]
[1745242480136,7.28504855,138.29,138.26,7.28397203]
[1745242481136,0.05374855,138.29,138.26,0.05177203]
[1745242481439,28.82,138.35,138.27,20.99211311]
[1745242481633,33.39403,138.34,138.27,20.99211311]
[1745242481927,26.16543,138.34,138.27,20.99211311]
[1745242482138,26.16543,138.34,138.29,15.33101311]
[1745242482437,0.05262087,138.33,138.3,0.05215657]
[1745242482941,0.05262087,138.33,138.32,7.2294]
[1745242483236,17.19623,138.34,138.3,0.05215657]
[1745242483436,7.2261,138.39,138.3,24.54577038]
[1745242483636,28.8,138.41,138.3,24.49361381]
[1745242484335,7.2259,138.39,138.35,7.2275]
[1745242484542,0.04994861,138.37,138.35,7.2275]
[1745242485739,0.04994861,138.37,138.36,7.2273]
[1745242486637,28.46,138.44,138.34,28.8462364]
[1745242486839,7.2247,138.42,138.34,28.8462364]
[1745242487035,7.2247,138.42,138.38,7.226]
[1745242487336,7.2239,138.43,138.34,28.8]
[1745242487542,28.46,138.44,138.4,7.2249]
[1745242487738,0.05522187,138.4,138.38,28.46]
[1745242487935,7.2229,138.45,138.38,28.46]
[1745242488139,31.3415,138.47,138.38,28.46]
[1745242488446,31.3415,138.47,138.42,7.2241]
[1745242488635,31.3415,138.47,138.38,28.46]
[1745242488840,2.9563,138.48,138.39,24.49361381]
[1745242489042,0.05057012,138.44,138.41,0.04875347]
[1745242489345,7.27387012,138.44,138.41,0.04875347]
[1745242489644,0.05057012,138.44,138.41,0.04875347]
[1745242489947,7.2237,138.43,138.41,0.04875347]
[1745242490447,0.05057012,138.44,138.41,0.04875347]
[1745242490641,7.27387012,138.44,138.41,0.04875347]
[1745242492346,7.2238,138.43,138.41,0.04875347]
[1745242492749,0.05057012,138.44,138.41,0.04875347]
[1745242492943,7.2242,138.42,138.41,0.04875347]
[1745242495455,7.2261,138.39,138.35,35.6678]
[1745242496255,7.2254,138.4,138.36,7.2273]
[1745242496555,0.04562439,138.39,138.37,0.04707281]
[1745242496756,7.27172439,138.39,138.37,0.04707281]
[1745242497154,0.04562439,138.39,138.37,0.04707281]
[1745242497355,7.27162439,138.39,138.37,0.04707281]
[1745242499256,7.2263,138.38,138.37,0.04707281]
[1745242499754,7.27162439,138.39,138.37,0.04707281]
[1745242499957,0.04562439,138.39,138.37,0.04707281]
[1745242500355,7.27162439,138.39,138.37,0.04707281]
[1745242502159,7.2263,138.38,138.37,0.04707281]
[1745242502353,0.04562439,138.39,138.27,5.7196]
[1745242502559,28.44,138.38,138.27,8.4963]
[1745242502857,5.6603,138.37,138.3,7.2302]
[1745242503360,20.97898813,138.37,138.3,7.2302]
[1745242503654,0.04782239,138.35,138.32,0.04737284]
[1745242504261,7.229,138.33,138.32,0.04737284]
[1745242505059,15.31868813,138.33,138.26,28.44]
[1745242505256,15.31868813,138.33,138.26,7.2324]
[1745242505457,15.31868813,138.31,138.23,43.75868813]
[1745242505651,7.2326,138.26,138.23,28.44]
[1745242505854,28.44,138.3,138.23,28.44]
[1745242506061,15.31868813,138.29,138.23,28.44]
[1745242506263,15.31868813,138.29,138.19,361.0]
[1745242506264,15.31868813,138.27,138.25,0.05389082]
[1745242506558,15.31868813,138.25,138.15,8.5477]
[1745242506752,28.44,138.26,138.17,7.2369]
[1745242506753,7.2354,138.21,138.17,7.2369]
[1745242507265,18.23878813,138.25,138.2,7.2356]
[1745242507462,28.44,138.26,138.19,15.31868813]
[1745242507666,28.46,138.27,138.19,15.31868813]
[1745242508162,7.2332,138.25,138.21,7.2348]
[1745242508862,0.05501296,138.24,138.22,0.04676046]
[1745242509063,7.28881296,138.24,138.22,0.04676046]
[1745242509466,0.05501296,138.24,138.22,0.04676046]
[1745242509656,7.2341,138.23,138.22,0.04676046]
[1745242511064,28.46,138.23,138.15,37.0077]
[1745242511666,7.2349,138.22,138.15,37.0077]
[1745242511865,28.46,138.23,138.15,8.5477]
[1745242512170,0.0541854,138.2,138.19,7.2362]
[1745242512671,0.0541854,138.2,138.18,7.28275131]
[1745242512965,0.0541854,138.2,138.18,0.04625131]
[1745242513164,0.0541854,138.2,138.19,7.2362]
[1745242513366,28.46,138.26,138.18,0.04625131]
[1745242513864,7.2333,138.25,138.18,0.04625131]
[1745242514063,28.46,138.26,138.18,0.04625131]
[1745242514268,7.2318,138.28,138.24,7.2333]
[1745242514470,2.9332,138.29,138.18,24.54403761]
[1745242514666,0.0510946,138.27,138.25,0.05039187]
[1745242514965,0.0510946,138.27,138.25,0.05463563]
[1745242515471,7.2832946,138.27,138.25,0.05463563]
[1745242515662,0.0510946,138.27,138.25,0.05463563]
[1745242517567,28.18,138.26,138.18,28.18]
[1745242517965,7.2351,138.22,138.18,35.4165]
[1745242518170,52.72403761,138.26,138.18,7.2365]
[1745242518567,52.72403761,138.26,138.15,392.0695]
[1745242518871,24.58959226,138.23,138.12,28.18]
[1745242519070,36.3478,138.22,138.12,28.18]
[1745242519370,36.3478,138.22,138.13,24.54403761]
[1745242519770,36.3478,138.22,138.15,7.2381]
[1745242519973,0.04624604,138.19,138.16,0.05305215]
[1745242520674,0.04624604,138.19,138.16,7.29055215]
[1745242521169,0.04624604,138.19,138.17,7.2371]
[1745242521872,7.28254604,138.19,138.16,7.29065215]
[1745242522171,0.04624604,138.19,138.16,7.29065215]
[1745242522372,0.04624604,138.19,138.16,0.05305215]
[1745242522872,0.04624604,138.19,138.17,7.237]
[1745242523274,0.04624604,138.19,138.16,0.05305215]
[1745242523775,0.04624604,138.19,138.16,28.25305215]
[1745242523976,0.04624604,138.19,138.16,0.05305215]
[1745242524975,7.28274604,138.19,138.16,0.05305215]
[1745242525176,0.04624604,138.19,138.16,0.05305215]
[1745242525577,7.28284604,138.19,138.16,7.29065215]
[1745242526780,0.04624604,138.19,138.16,0.05305215]
[1745242527382,7.237,138.18,138.16,0.05305215]
[1745242527681,0.04624604,138.19,138.16,0.05305215]
[1745242527881,0.04624604,138.19,138.16,7.29085215]
[1745242528077,0.04624604,138.19,138.16,0.05305215]
[1745242528477,0.04624604,138.19,138.18,7.2367]
[1745242528777,0.04624604,138.19,138.16,0.05305215]
[1745242529581,0.04624604,138.19,138.18,7.2367]
[1745242529880,0.04624604,138.19,138.16,0.05305215]
[1745242530082,7.28274604,138.19,138.16,7.29055215]
[1745242531986,7.2373,138.17,138.16,0.05305215]
[1745242532784,7.2391,138.14,138.1,30.8959]
[1745242533084,7.2391,138.14,138.11,7.2401]
[1745242533779,7.29270926,138.14,138.11,0.05425295]
[1745242533985,0.05360926,138.14,138.11,0.05425295]
[1745242534987,7.2394,138.13,138.11,0.05425295]
[1745242536088,7.2399,138.12,138.11,0.05425295]
[1745242538786,28.25360926,138.14,138.11,0.05425295]
[1745242539792,0.05360926,138.14,138.11,0.05425295]
[1745242540692,28.2,138.2,138.11,2.83565295]
[1745242540891,28.2,138.2,138.11,2.7814]
[1745242541193,7.2368,138.18,138.15,7.2381]
[1745242541594,7.2368,138.18,138.15,7.29156144]
[1745242541595,7.28439231,138.18,138.15,7.29156144]
[1745242541797,0.04759231,138.18,138.16,7.2374]
[1745242542993,0.04759231,138.18,138.17,7.2373]
[1745242543694,0.04759231,138.18,138.15,0.05346144]
[1745242544095,7.2378,138.16,138.15,0.05346144]
[1745242544395,0.04759231,138.18,138.15,0.05346144]
[1745242544697,0.04759231,138.18,138.16,7.2375]
[1745242546498,0.04759231,138.18,138.15,0.05346144]
[1745242547699,7.28459231,138.18,138.15,0.05346144]
[1745242548398,0.04759231,138.18,138.15,0.05346144]
[1745242549905,7.2378,138.16,138.15,0.05346144]
[1745242551105,5.6025,138.17,138.07,30.6533]
[1745242551406,5.6025,138.17,138.07,37.8955]
[1745242551606,7.2402,138.12,138.07,37.8955]
[1745242551801,24.54403761,138.15,138.07,30.6533]
[1745242552000,27.9,138.14,138.07,27.9]
[1745242552201,7.2407,138.11,138.1,0.05532382]
[1745242553809,0.05110687,138.12,138.1,0.05532382]
[1745242554310,0.05110687,138.12,138.11,35.1604]
[1745242554608,0.05110687,138.12,138.11,27.92]
[1745242554808,7.29100687,138.12,138.1,0.05532382]
[1745242555309,7.2404,138.11,138.1,0.05532382]
[1745242561213,7.2428,138.07,138.04,7.2437]
[1745242561710,15.36455246,138.1,138.03,5.4076]
[1745242562412,7.29224624,138.08,138.05,0.05360865]
[1745242562610,0.04974624,138.08,138.05,0.05360865]
[1745242562911,7.2426,138.07,138.05,0.05360865]
[1745242563113,0.04974624,138.08,138.05,0.05360865]
[1745242563406,7.29184624,138.08,138.05,7.29710865]
[1745242563808,0.04974624,138.08,138.05,0.05360865]
[1745242564208,0.04974624,138.08,138.07,7.2425]
[1745242565814,2.7362,138.15,138.06,43.28455246]
[1745242566015,2.7362,138.15,138.08,15.36455246]
[1745242566316,27.92,138.16,138.1,15.36455246]
[1745242566612,27.92,138.16,138.1,27.92]
[1745242567109,0.05204767,138.14,138.12,0.05408259]
[1745242568016,7.2394,138.13,138.12,0.05408259]
[1745242570416,7.29104767,138.14,138.12,0.05408259]
[1745242571015,7.2394,138.13,138.12,0.05408259]
[1745242571610,0.05204767,138.14,138.12,0.05408259]
[1745242571814,7.29134767,138.14,138.12,0.05408259]
[1745242572117,0.05204767,138.14,138.12,0.05408259]
[1745242572713,7.2394,138.13,138.12,0.05408259]
[1745242574414,7.29114767,138.14,138.12,0.05408259]
[1745242574615,0.05204767,138.14,138.12,0.05408259]
[1745242575116,0.05204767,138.14,138.12,7.29388259]
[1745242575415,7.29114767,138.14,138.12,0.05408259]
[1745242576117,7.2394,138.13,138.12,0.05408259]
[1745242576516,2.8126,138.13,138.07,27.92]
[1745242576716,5.4929,138.13,138.06,7.2427]
[1745242577512,5.4929,138.13,138.05,7.2433]
[1745242577717,7.2418,138.09,138.08,0.05494732]
[1745242580318,27.62788236,138.11,138.08,0.05494732]
[1745242580917,27.62788236,138.11,138.04,27.58]
[1745242581319,52.19782712,138.11,138.04,27.58]
[1745242581520,7.2433,138.06,138.04,27.58]
[1745242581915,52.14994476,138.11,138.02,573.06]
[1745242582120,52.14994476,138.11,137.99,2.691]
[1745242582121,0.04797953,138.06,138.04,0.05541158]
[1745242582520,52.14994476,138.11,138.04,0.05541158]
[1745242582823,7.2436,138.05,138.04,0.05541158]
[1745242585425,7.2436,138.05,138.04,0.05541158]
[1745242585624,7.29195197,138.06,138.04,0.05541158]
[1745242585925,0.04875197,138.06,138.04,0.05541158]
[1745242586324,7.2436,138.05,138.04,0.05541158]
[1745242587823,7.2455,138.02,137.98,30.3744]
[1745242588125,5.5548,138.06,137.98,34.847]
[1745242588425,24.56994476,138.04,137.96,27.6]
[1745242588625,24.56994476,138.04,137.97,7.2475]
[1745242588924,7.2463,138.0,137.96,27.6]
[1745242589319,7.2463,138.0,137.96,34.848]
[1745242589521,15.39431707,138.01,137.93,27.6]
[1745242589722,15.39431707,137.99,137.93,34.8496]
[1745242589923,7.29710444,137.98,137.93,27.6]
[1745242590221,0.04970444,137.98,137.93,27.6]
[1745242590425,7.29730444,137.98,137.93,27.6]
[1745242590627,0.04970444,137.98,137.93,27.6]
[1745242591025,7.248,137.97,137.93,34.8495]
[1745242591622,0.04970444,137.98,137.93,27.6]
[1745242591828,0.04970444,137.98,137.93,42.99431707]
[1745242592029,0.04970444,137.98,137.93,34.8496]
[1745242592527,7.2486,137.96,137.9,7.2512]
[1745242592828,42.99431707,137.95,137.87,2.6849]
[1745242593029,15.39431707,137.93,137.85,30.3935]
[1745242593227,2.82263458,137.94,137.85,45.78781707]
[1745242593423,2.7678,137.94,137.87,15.39431707]
[1745242593625,0.05034926,137.9,137.87,15.39431707]
[1745242593828,0.05034926,137.9,137.85,45.78781707]
[1745242594025,0.05034926,137.9,137.85,27.6]
[1745242594232,0.05034926,137.9,137.83,20.76601707]
[1745242594233,7.2523,137.89,137.84,7.2544]
[1745242594830,15.39431707,137.89,137.83,7.2547]
[1745242595027,15.39431707,137.87,137.76,43.01431707]
[1745242595329,27.62,137.86,137.79,7.2568]
[1745242595529,0.05403706,137.83,137.76,27.62]
[1745242596126,0.05403706,137.83,137.77,2.8499]
[1745242596429,0.05403706,137.83,137.82,7.2556]
[1745242596636,0.05403706,137.83,137.77,2.8499]
[1745242597137,0.05403706,137.83,137.8,7.2567]
[1745242597330,0.05403706,137.83,137.76,27.62]
[1745242598026,7.30953706,137.83,137.76,27.62]
[1745242598335,7.30953706,137.83,137.79,7.2567]
[1745242598533,7.2558,137.82,137.76,27.62]
[1745242599033,7.2558,137.82,137.73,605.5263]
[1745242599034,28.8,137.82,137.73,605.5263]
[1745242599233,31.6538,137.82,137.73,605.5263]
[1745242599534,0.05155466,137.79,137.77,7.2579]
[1745242600438,0.05155466,137.79,137.76,7.2587]
[1745242601134,0.05155466,137.79,137.77,7.2583]
[1745242601337,7.30875466,137.79,137.73,605.5263]
[1745242601534,0.05155466,137.79,137.73,31.6463]
[1745242602034,0.05155466,137.79,137.78,7.2578]
[1745242602532,0.05155466,137.79,137.73,31.6463]
[1745242603231,0.05155466,137.79,137.72,5.5917]
[1745242603435,28.87155466,137.79,137.72,5.5917]
[1745242603732,28.87155466,137.79,137.74,7.2595]
[1745242603733,7.2581,137.78,137.74,7.2595]
[1745242604134,28.87155466,137.79,137.74,7.2595]
[1745242604436,7.2586,137.77,137.73,7.2602]
[1745242604636,28.87155466,137.79,137.7,28.82]
[1745242604835,7.2581,137.78,137.7,28.82]
[1745242605039,0.04925632,137.76,137.7,28.82]
[1745242605237,0.04925632,137.76,137.72,24.68836005]
[1745242605532,28.82,137.82,137.77,7.2579]
[1745242605738,28.82,137.82,137.71,28.82]
[1745242606137,53.50836005,137.82,137.71,28.82]
[1745242606338,7.2592,137.76,137.72,7.2605]
[1745242606538,7.2592,137.76,137.75,0.05548183]
[1745242606740,7.2592,137.76,137.71,28.82]
[1745242607035,7.2593,137.75,137.74,0.0500507]
[1745242607241,7.2593,137.75,137.69,2.9305]
[1745242607542,7.2593,137.75,137.73,0.04858967]
[1745242607742,24.73512785,137.76,137.64,24.68836005]
[1745242608043,24.68836005,137.73,137.62,35.53808229]
[1745242608244,7.2649,137.65,137.62,6.69808229]
[1745242608441,28.84,137.66,137.62,6.69808229]
[1745242608742,28.84,137.67,137.62,6.69808229]
[1745242609041,0.0469915,137.65,137.62,6.69808229]
[1745242610042,7.2657,137.63,137.62,6.69808229]
[1745242610242,36.1057,137.63,137.62,6.69808229]
[1745242611043,0.0469915,137.65,137.62,6.69808229]
[1745242611742,7.2657,137.63,137.62,6.69808229]
[1745242612638,7.2653,137.64,137.62,6.69808229]
[1745242613244,7.2657,137.63,137.62,6.69808229]
[1745242614447,2.855,137.64,137.52,53.54836005]
[1745242614745,2.855,137.64,137.53,2.6729]
[1745242614942,0.04879179,137.59,137.57,7.2684]
[1745242615141,7.2669,137.61,137.57,7.2684]
[1745242615342,0.04864062,137.59,137.57,7.2684]
[1745242615644,0.04864062,137.59,137.56,7.2691]
[1745242615846,0.04864062,137.59,137.53,2.6729]
[1745242616045,0.04864062,137.59,137.55,24.68836005]
[1745242616246,28.86,137.63,137.58,7.2679]
[1745242616445,28.86,137.63,137.56,28.91252636]
[1745242616746,7.2664,137.62,137.56,28.86]
[1745242617346,36.1259,137.63,137.59,7.2678]
[1745242617544,0.04622994,137.6,137.59,7.2678]
[1745242617945,0.04622994,137.6,137.58,7.31995189]
[1745242618447,0.04622994,137.6,137.58,0.05185189]
[1745242618848,0.04622994,137.6,137.58,7.31995189]
[1745242619450,0.04622994,137.6,137.58,0.05185189]
[1745242620551,0.04622994,137.6,137.53,31.5329]
[1745242620552,28.86,137.59,137.5,2.7859]
[1745242620851,31.8207,137.59,137.5,2.7859]
[1745242621145,24.68836005,137.55,137.3,21.8481]
[1745242621351,31.6671,137.54,137.4,24.68836005]
[1745242621553,24.68836005,137.52,137.41,34.461]
[1745242621749,0.05108664,137.48,137.41,34.461]
[1745242621949,7.2745,137.47,137.43,7.2758]
[1745242622143,0.05108664,137.48,137.38,2.895]
[1745242622348,24.68836005,137.45,137.3,28.88]
[1745242622646,7.2771,137.42,137.32,24.68836005]
[1745242622850,34.5076,137.44,137.32,24.68836005]
[1745242623149,0.05397977,137.38,137.36,24.68836005]
[1745242623349,28.88,137.43,137.32,28.88]
[1745242623648,28.88,137.43,137.3,5.7607]
[1745242623649,0.05399228,137.38,137.31,24.68836005]
[1745242624048,0.05399228,137.38,137.33,7.2812]
[1745242624348,0.05399228,137.38,137.31,24.68836005]
[1745242624650,30.19399228,137.38,137.36,7.2795]
[1745242624848,0.05399228,137.38,137.33,24.68836005]
[1745242625048,0.05399228,137.38,137.3,5.7607]
[1745242625248,24.68836005,137.6,137.3,5.7607]
[1745242625449,2.9044,137.49,137.37,24.68836005]
[1745242625645,24.68836005,137.47,137.38,30.14]
[1745242625847,24.68836005,137.47,137.34,24.68836005]
[1745242626043,30.14,137.48,137.34,24.68836005]
[1745242626248,30.14,137.48,137.37,24.68836005]
[1745242626450,0.05368119,137.42,137.4,0.05289468]
[1745242626653,30.14,137.48,137.4,0.05289468]
[1745242626853,0.04741424,137.42,137.4,24.74125473]
[1745242627152,2.9408,137.51,137.4,24.68836005]
[1745242627547,5.8142,137.53,137.43,24.68836005]
[1745242627853,5.8142,137.53,137.44,30.14]
[1745242628250,7.2735,137.49,137.47,0.04979867]
[1745242628449,0.04943386,137.5,137.47,0.04979867]
[1745242628846,0.04943386,137.5,137.47,7.32349867]
[1745242629250,0.04943386,137.5,137.47,0.04979867]
[1745242629553,0.04943386,137.5,137.49,7.2731]
[1745242630146,5.6381,137.57,137.47,54.87815872]
[1745242630147,35.7781,137.57,137.47,54.87815872]
[1745242630352,35.7781,137.57,137.47,54.82836005]
[1745242630552,32.8917,137.57,137.53,7.2709]
[1745242630753,30.14,137.57,137.53,7.2709]
[1745242630954,37.4088,137.57,137.47,54.82836005]
[1745242631251,37.4088,137.57,137.52,7.2711]
[1745242631451,0.05297606,137.53,137.52,7.2711]
[1745242631654,30.14,137.57,137.53,7.2709]
[1745242631853,0.0530072,137.54,137.53,7.2709]
[1745242632054,54.82836005,137.6,137.53,7.2709]